lending/lending_fUSD_20241211
["ID","MTS","AMOUNT","RATE_DAILY","PERIOD"]
[344983177,1733903470286,-1435.20328296,0.00011099,2]
[344983178,1733903470297,-404.05,0.00011099,2]
[344983179,1733903470307,-151.0,0.00011099,2]
[344983180,1733903470316,-279.487461,0.00011099,2]
[344983181,1733903470326,-500.0,0.00011099,2]
[344983182,1733903470335,-500.0,0.00011099,2]
[344983183,1733903470345,-528.70422754,0.00011099,2]
[344983184,1733903470355,-154.33,0.00011099,2]
[344983185,1733903470365,-685.11,0.00011099,2]
[344983186,1733903470374,-685.11,0.00011099,2]
[344983187,1733903470384,-685.11,0.00011099,2]
[344983188,1733903470393,-685.11,0.00011099,2]
[344983189,1733903470403,-685.11,0.00011099,2]
[344983190,1733903470414,-685.11,0.00011099,2]
[344983191,1733903470425,-685.11,0.00011099,2]
[344983192,1733903470434,-685.11,0.00011099,2]
[344983193,1733903470444,-685.11,0.00011099,2]
[344983194,1733903470454,-685.11,0.00011099,2]
[344983195,1733903470463,-685.11,0.00011099,2]
[344983196,1733903470472,-685.11,0.00011099,2]
[344983197,1733903470482,-685.11,0.00011099,2]
[344983198,1733903470491,-685.11,0.00011099,2]
[344983199,1733903470501,-685.11,0.00011099,2]
[344983200,1733903470513,-685.11,0.00011099,2]
[344983201,1733903470526,-685.16899314,0.00011099,2]
[344983202,1733903470536,-500.0,0.00011099,2]
[344983203,1733903470545,-500.0,0.00011099,2]
[344983204,1733903470554,-500.0,0.00011099,2]
[344983205,1733903470564,-500.0,0.00011099,2]
[344983206,1733903470573,-500.0,0.00011099,2]
[344983207,1733903470583,-631.74598695,0.00011099,2]
[344983208,1733903470592,-500.0,0.00011099,2]
[344983209,1733903470602,-500.0,0.00011099,2]
[344983210,1733903470611,-426.10296483,0.00011099,2]
[344983211,1733903470621,-500.0,0.00011099,2]
[344983212,1733903470630,-500.0,0.00011099,2]
[344983213,1733903470639,-500.0,0.00011099,2]
[344983214,1733903470649,-500.0,0.00011099,2]
[344983215,1733903470659,-500.0,0.00011099,2]
[344983216,1733903470668,-500.0,0.00011099,2]
[344983217,1733903470678,-500.0,0.00011099,2]
[344983218,1733903470688,-500.0,0.00011099,2]
[344983219,1733903470697,-386.27239058,0.00011099,2]
[344983220,1733903470707,-500.0,0.00011099,2]
[344983221,1733903470716,-500.0,0.00011099,2]
[344983222,1733903470726,-500.0,0.00011099,2]
[344983223,1733903470735,-181.06530543,0.00011099,2]
[344983224,1733903470744,-500.0,0.00011099,2]
[344983225,1733903470753,-500.0,0.00011099,2]
[344983226,1733903470766,-500.0,0.00011099,2]
[344983227,1733903470776,-1617.55,0.00011099,2]
[344983228,1733903470787,-1617.55,0.00011099,2]
[344983229,1733903470797,-1617.55,0.00011099,2]
[344983230,1733903470806,-1617.55,0.00011099,2]
[344983231,1733903470816,-1617.55,0.00011099,2]
[344983232,1733903470826,-1617.55,0.00011099,2]
[344983233,1733903470835,-1617.55,0.00011099,2]
[344983234,1733903470845,-1617.55,0.00011099,2]
[344983235,1733903470855,-1617.55,0.00011099,2]
[344983236,1733903470864,-1617.55,0.00011099,2]
[344983237,1733903470874,-1617.55,0.00011099,2]
[344983238,1733903470885,-1617.55,0.00011099,2]
[344983239,1733903470895,-1617.55,0.00011099,2]
[344983240,1733903470904,-520.03,0.00011099,2]
[344983241,1733903470914,-1617.55,0.00011099,2]
[344983242,1733903470924,-520.03,0.00011099,2]
[344983243,1733903470933,-1617.55,0.00011099,2]
[344983244,1733903470943,-520.03,0.00011099,2]
[344983245,1733903470954,-520.03,0.00011099,2]
[344983246,1733903470964,-1617.55,0.00011099,2]
[344983247,1733903470974,-520.03,0.00011099,2]
[344983248,1733903470984,-1617.63492035,0.00011099,2]
[344983249,1733903470995,-520.03,0.00011099,2]
[344983250,1733903471005,-520.03,0.00011099,2]
[344983251,1733903471021,-520.03,0.00011099,2]
[344983252,1733903471030,-520.03,0.00011099,2]
[344983253,1733903471040,-520.03,0.00011099,2]
[344983254,1733903471050,-520.03,0.00011099,2]
[344983255,1733903471059,-520.03,0.00011099,2]
[344983256,1733903471069,-520.03,0.00011099,2]
[344983257,1733903471089,-520.03,0.00011099,2]
[344983258,1733903471099,-500.0,0.00011099,2]
[344983259,1733903471109,-520.03,0.00011099,2]
[344983260,1733903471119,-500.0,0.00011099,2]
[344983261,1733903471129,-500.0,0.00011099,2]
[344983262,1733903471139,-520.17,0.00011099,2]
[344983263,1733903471149,-500.0,0.00011099,2]
[344983264,1733903471159,-500.0,0.00011099,2]
[344983265,1733903471169,-209.1,0.00011099,2]
[344983266,1733903471179,-501.63,0.00011099,2]
[344983267,1733903471189,-501.63,0.00011099,2]
[344983268,1733903471199,-501.63,0.00011099,2]
[344983269,1733903471209,-501.63,0.00011099,2]
[344983270,1733903471219,-501.63,0.00011099,2]
[344983271,1733903471229,-501.63,0.00011099,2]
[344983272,1733903471239,-501.63,0.00011099,2]
[344983273,1733903471252,-501.63,0.00011099,2]
[344983274,1733903471266,-501.63,0.00011099,2]
[344983275,1733903471276,-501.63,0.00011099,2]
[344983276,1733903471286,-500.0,0.00011099,2]
[344983277,1733903471297,-501.63,0.00011099,2]
[344983278,1733903471307,-501.63,0.00011099,2]
[344983279,1733903471317,-500.0,0.00011099,2]
[344983280,1733903471329,-501.63,0.00011099,2]
[344983281,1733903471339,-500.0,0.00011099,2]
[344983282,1733903471349,-500.0,0.00011099,2]
[344983283,1733903471359,-500.0,0.00011099,2]
[344983284,1733903471369,-501.63,0.00011099,2]
[344983285,1733903471379,-500.0,0.00011099,2]
[344983286,1733903471389,-501.63,0.00011099,2]
[344983287,1733903471400,-500.0,0.00011099,2]
[344983288,1733903471410,-501.63,0.00011099,2]
[344983289,1733903471420,-500.0,0.00011099,2]
[344983290,1733903471430,-501.86,0.00011099,2]
[344983291,1733903471439,-500.0,0.00011099,2]
[344983292,1733903471450,-518.42686527,0.00011099,2]
[344983293,1733903471459,-500.0,0.00011099,2]
[344983294,1733903471553,-500.0,0.00011099,2]
[344983295,1733903471563,-500.0,0.00011099,2]
[344983296,1733903471573,-500.0,0.00011099,2]
[344983297,1733903471582,-500.0,0.00011099,2]
[344983298,1733903471591,-500.0,0.00011099,2]
[344983299,1733903471601,-500.0,0.00011099,2]
[344983300,1733903471610,-355.3267811,0.00011099,2]
[344983301,1733903471619,-500.0,0.00011099,2]
[344983302,1733903471629,-500.0,0.00011099,2]
[344983303,1733903471638,-500.0,0.00011099,2]
[344983304,1733903471649,-647.45650227,0.00011099,2]
[344983305,1733903471658,-500.0,0.00011099,2]
[344983306,1733903471668,-500.0,0.00011099,2]
[344983307,1733903471677,-500.0,0.00011099,2]
[344983308,1733903471687,-955.54,0.00011099,2]
[344983309,1733903471697,-500.0,0.00011099,2]
[344983310,1733903471707,-955.54,0.00011099,2]
[344983311,1733903471716,-621.37249735,0.00011099,2]
[344983312,1733903471725,-955.54,0.00011099,2]
[344983313,1733903471734,-955.54,0.00011099,2]
[344983314,1733903471744,-955.54,0.00011099,2]
[344983315,1733903471753,-955.54,0.00011099,2]
[344983316,1733903471767,-955.54,0.00011099,2]
[344983317,1733903471776,-955.54,0.00011099,2]
[344983318,1733903471786,-955.54,0.00011099,2]
[344983319,1733903471796,-955.54,0.00011099,2]
[344983320,1733903471805,-955.54,0.00011099,2]
[344983321,1733903471814,-955.54,0.00011099,2]
[344983322,1733903471823,-955.54,0.00011099,2]
[344983323,1733903471833,-955.68698465,0.00011099,2]
[344983324,1733903471842,-500.0,0.00011099,2]
[344983325,1733903471852,-500.0,0.00011099,2]
[344983326,1733903471861,-500.0,0.00011099,2]
[344983327,1733903471871,-500.0,0.00011099,2]
[344983328,1733903471880,-500.0,0.00011099,2]
[344983329,1733903471889,-500.0,0.00011099,2]
[344983330,1733903471899,-500.0,0.00011099,2]
[344983331,1733903471908,-500.0,0.00011099,2]
[344983332,1733903471918,-169.13,0.00011099,2]
[344983333,1733903471927,-3000.0,0.00011099,2]
[344983334,1733903471937,-500.0,0.00011099,2]
[344983335,1733903471946,-500.0,0.00011099,2]
[344983336,1733903471956,-646.68,0.00011099,2]
[344983337,1733903471965,-540.77,0.00011099,2]
[344983338,1733903471975,-500.0,0.00011099,2]
[344983339,1733903471984,-500.0,0.00011099,2]
[344983340,1733903471994,-500.0,0.00011099,2]
[344983341,1733903472003,-500.0,0.00011099,2]
[344983342,1733903472017,-500.0,0.00011099,2]
[344983343,1733903472027,-378.10379156,0.00011099,2]
[344983344,1733903472036,-500.0,0.00011099,2]
[344983345,1733903472045,-500.0,0.00011099,2]
[344983346,1733903472055,-500.0,0.00011099,2]
[344983347,1733903472064,-500.0,0.00011099,2]
[344983348,1733903472073,-500.0,0.00011099,2]
[344983349,1733903472083,-500.0,0.00011099,2]
[344983350,1733903472093,-583.81789325,0.00011099,2]
[344983351,1733903472102,-500.0,0.00011099,2]
[344983352,1733903472111,-500.0,0.00011099,2]
[344983353,1733903472120,-548.74515426,0.00011099,2]
[344983354,1733903472130,-500.0,0.00011099,2]
[344983355,1733903472139,-500.0,0.00011099,2]
[344983356,1733903472148,-500.0,0.00011099,2]
[344983357,1733903472158,-500.0,0.00011099,2]
[344983358,1733903472167,-500.0,0.00011099,2]
[344983359,1733903472177,-500.0,0.00011099,2]
[344983360,1733903472187,-500.0,0.00011099,2]
[344983361,1733903472196,-500.0,0.00011099,2]
[344983362,1733903472205,-500.0,0.00011099,2]
[344983363,1733903472215,-500.0,0.00011099,2]
[344983364,1733903472224,-378.42,0.00011099,2]
[344983365,1733903472234,-1842.98,0.00011099,2]
[344983366,1733903472244,-1842.98,0.00011099,2]
[344983367,1733903472260,-1842.98,0.00011099,2]
[344983368,1733903472270,-1842.98,0.00011099,2]
[344983369,1733903472279,-500.0,0.00011099,2]
[344983370,1733903472291,-500.0,0.00011099,2]
[344983371,1733903472302,-500.0,0.00011099,2]
[344983372,1733903472313,-500.0,0.00011099,2]
[344983373,1733903472323,-500.0,0.00011099,2]
[344983374,1733903472334,-500.0,0.00011099,2]
[344983375,1733903472344,-500.0,0.00011099,2]
[344983376,1733903472353,-500.0,0.00011099,2]
[344983377,1733903472363,-500.0,0.00011099,2]
[344983378,1733903472373,-1842.98,0.00011099,2]
[344983379,1733903472382,-500.0,0.00011099,2]
[344983380,1733903472392,-1842.98,0.00011099,2]
[344983381,1733903472401,-1842.98,0.00011099,2]
[344983382,1733903472411,-500.0,0.00011099,2]
[344983383,1733903472420,-1842.98,0.00011099,2]
[344983384,1733903472430,-500.0,0.00011099,2]
[344983385,1733903472439,-1842.98,0.00011099,2]
[344983386,1733903472449,-500.0,0.00011099,2]
[344983387,1733903472459,-1842.98,0.00011099,2]
[344983388,1733903472468,-351.49071136,0.00011099,2]
[344983389,1733903472477,-1842.98,0.00011099,2]
[344983390,1733903472486,-1842.98,0.00011099,2]
[344983391,1733903472496,-1842.98,0.00011099,2]
[344983392,1733903472506,-1842.98,0.00011099,2]
[344983393,1733903472516,-1842.98,0.00011099,2]
[344983394,1733903472527,-1842.98,0.00011099,2]
[344983395,1733903472536,-1843.11924722,0.00011099,2]
[344983396,1733903472546,-500.0,0.00011099,2]
[344983397,1733903472556,-252.54746797,0.00011099,2]
[344983398,1733903472566,-500.0,0.00011099,2]
[344983399,1733903472577,-500.0,0.00011099,2]
[344983400,1733903472587,-500.0,0.00011099,2]
[344983401,1733903472597,-612.10664773,0.00011099,2]
[344983402,1733903472608,-500.0,0.00011099,2]
[344983403,1733903472616,-500.0,0.00011099,2]
[344983404,1733903472626,-500.0,0.00011099,2]
[344983405,1733903472635,-532.50675473,0.00011099,2]
[344983406,1733903472644,-603.47,0.00011099,2]
[344983407,1733903472654,-500.0,0.00011099,2]
[344983408,1733903472663,-603.47,0.00011099,2]
[344983409,1733903472672,-500.0,0.00011099,2]
[344983410,1733903472682,-603.47,0.00011099,2]
[344983411,1733903472691,-270.12167066,0.00011099,2]
[344983412,1733903472701,-603.47,0.00011099,2]
[344983413,1733903472711,-603.47,0.00011099,2]
[344983414,1733903472720,-603.47,0.00011099,2]
[344983415,1733903472730,-603.47,0.00011099,2]
[344983416,1733903472739,-603.47,0.00011099,2]
[344983417,1733903472748,-603.47,0.00011099,2]
[344983418,1733903472760,-603.47,0.00011099,2]
[344983419,1733903472770,-603.47,0.00011099,2]
[344983420,1733903472779,-603.47,0.00011099,2]
[344983421,1733903472789,-603.47,0.00011099,2]
[344983422,1733903472798,-603.47,0.00011099,2]
[344983423,1733903472807,-603.47,0.00011099,2]
[344983424,1733903472817,-603.61489954,0.00011099,2]
[344983425,1733903472827,-29617.7003182,0.000111,2]
[344983426,1733903472836,-284699.40292895,0.000111,2]
[344983427,1733903473081,-371911.95261252,0.000111,2]
[344983428,1733903473091,-11116.08283689,0.000111,2]
[344983429,1733903473101,-2724793.32478617,0.000111,2]
[344983430,1733903473113,-17223.00000125,0.000111,2]
[344983431,1733903473125,-50545.77713834,0.000111,2]
[344983432,1733903473137,-236334.79876552,0.000111,2]
[344983433,1733903473914,-443.47581194,0.000111,2]
[344983434,1733903473926,-1034.3555,0.000111,2]
[344983435,1733903473943,-243394.22605328,0.000111,2]
[344983436,1733903474424,-500.0,0.00010974,2]
[344983437,1733903474435,-500.0,0.00010995,2]
[344983438,1733903474447,-500.0,0.00010996,2]
[344983439,1733903474458,-883.964,0.00011064,2]
[344983440,1733903474468,-153.0,0.00011082,2]
[344983441,1733903474478,-153.0,0.00011082,2]
[344983442,1733903474488,-153.0,0.00011082,2]
[344983443,1733903474499,-153.0,0.00011082,2]
[344983444,1733903474509,-500.0,0.00011093,2]
[344983445,1733903474523,-500.0,0.00011094,2]
[344983446,1733903474533,-500.0,0.00011095,2]
[344983447,1733903474543,-152089.75664838,0.000111,2]
[344983448,1733903474557,-493913.97803197,0.000111,2]
[344983449,1733903474612,-919.11205333,0.000111,2]
[344983450,1733903474623,-1139.9217913,0.000111,2]
[344983451,1733903474719,-15743.14776936,0.000111,2]
[344983452,1733903474731,-560.61310379,0.000111,2]
[344983453,1733903474743,-314.19031305,0.000111,2]
[344983454,1733903474755,-1572.26898416,0.000111,2]
[344983455,1733903474788,-500.0,0.00011095,2]
[344983456,1733903474798,-22440.1322399,0.000111,2]
[344983457,1733903474813,-19857.8364,0.000111,2]
[344983458,1733903474825,-281.00881241,0.000111,2]
[344983459,1733903474859,-500.0,0.00011095,2]
[344983460,1733903474869,-7309.41809929,0.000111,2]
[344983461,1733903474881,-27349.45846052,0.000111,2]
[344983463,1733903977637,154.92,8.039e-05,2]
[344983465,1733904417212,1002.43,8.219e-05,2]
[344983487,1733904635046,-778.30932546,9.938e-05,2]
[344983488,1733904635056,-1000.0,9.981e-05,2]
[344983489,1733904635072,-250.0,0.00010032,2]
[344983490,1733904635082,-159.4,0.00010038,2]
[344983491,1733904635092,-189.71,0.0001004,2]
[344983492,1733904635101,-250.0,0.00010049,2]
[344983493,1733904635111,-178.6,0.00010072,2]
[344983494,1733904635120,-250.0,0.00010081,2]
[344983495,1733904635130,-5338.56666356,0.00010091,2]
[344983496,1733904635146,-379.27345038,0.00010091,2]
[344983497,1733904635161,-18182.15988606,0.00010091,2]
[344983498,1733904635171,-224.27581544,0.00010186,2]
[344983499,1733904635181,-150.0,0.00010286,2]
[344983500,1733904635192,-1002.43,0.00010476,2]
[344983501,1733904635202,-302.067,0.0001055,2]
[344983502,1733904635212,-3879.0,0.00010786,2]
[344983503,1733904635221,-1167.0,0.00010786,2]
[344983504,1733904635231,-8788.04326401,0.00010786,2]
[344983505,1733904635250,-2901.22842254,0.00010786,2]
[344983506,1733904635262,-687.63183088,0.00010786,2]
[344983507,1733904635372,-1348.09648257,0.00010786,2]
[344983508,1733904635381,-150.0,0.00010786,2]
[344983509,1733904635392,-1000.0,0.000108,2]
[344983510,1733904635402,-675.4484,0.00010873,2]
[344983511,1733904635412,-755.39799974,0.00010874,2]
[344983512,1733904635424,-1398.06170026,0.00010874,2]
[344983514,1733904635434,-576.4298,0.00010874,2]
[344983516,1733904635444,-1000.0,0.00010874,2]
[344983518,1733904635454,-1000.74035018,0.00010876,2]
[344983520,1733904635463,-1008.10358426,0.00010878,2]
[344983522,1733904635472,-224.27581544,0.0001089,2]
[344983524,1733904635481,-4810.11454785,0.000109,2]
[344983527,1733904637744,-200.89025215,0.000109,2]
[344983528,1733904637753,-3175.17501541,0.000109,2]
[344983529,1733904637871,-2225.93563195,0.000109,2]
[344983530,1733904637957,-4378.04514188,0.000109,2]
[344983531,1733904638067,-10220.67372,0.000109,2]
[344983532,1733904638120,-8218.97049076,0.000109,2]
[344983533,1733904638130,-500.0,0.00010973,2]
[344983534,1733904638140,-500.0,0.00010973,2]
[344983535,1733904638150,-500.0,0.00010973,2]
[344983536,1733904638159,-500.0,0.00010977,2]
[344983537,1733904638169,-500.0,0.00010977,2]
[344983538,1733904638179,-500.0,0.00010977,2]
[344983539,1733904638189,-21945.02950924,0.00010978,2]
[344983694,1733904639855,-74852.74615912,0.00010978,2]
[344983696,1733904639867,-3048.08593113,0.00010978,2]
[344983698,1733904639880,-388.31395064,0.00010978,2]
[344983700,1733904639890,-200.0,0.00010989,2]
[344983702,1733904639901,-200.0,0.0001099,2]
[344983704,1733904639911,-3000.0,0.0001099,2]
[344983706,1733904639921,-200.0,0.00010993,2]
[344983708,1733904639930,-30.77732898,0.00010996,2]
[344983710,1733904639942,-169.22267102,0.00010996,2]
[344983712,1733904639952,-146.37732898,0.00010997,2]
[344983715,1733904639963,-353.62267102,0.00010997,2]
[344983717,1733904639973,-500.0,0.00010997,2]
[344983719,1733904639983,-169.57733898,0.00010999,2]
[344983733,1733904640116,-330.42266102,0.00010999,2]
[344983735,1733904640126,-64.51728795,0.00010999,2]
[344983737,1733904640137,-435.48271205,0.00010999,2]
[344983740,1733904640147,-500.0,0.00010999,2]
[344983741,1733904640156,-557.06,0.00010999,2]
[344983743,1733904640166,-131.42234766,0.00010999,2]
[344984014,1733904642860,-368.57765234,0.00010999,2]
[344984016,1733904642870,-500.0,0.00010999,2]
[344984018,1733904642881,-500.0,0.00010999,2]
[344984020,1733904642890,-500.0,0.00010999,2]
[344984023,1733904642901,-2500.0,0.00011,2]
[344984025,1733904642910,-2500.0,0.00011,2]
[344984027,1733904642920,-1000.0,0.00011,2]
[344984028,1733904642929,-173.3107776,0.00011,2]
[344984030,1733904642939,-1262.0,0.00011064,2]
[344984032,1733904642948,-710.386,0.00011064,2]
[344984034,1733904642958,-631.0,0.00011064,2]
[344984036,1733904642967,-2006.0,0.00011064,2]
[344984038,1733904642976,-564.0,0.00011064,2]
[344984041,1733904642987,-1895.0,0.00011064,2]
[344984042,1733904642996,-3763.0,0.00011064,2]
[344984044,1733904643005,-817.0,0.00011064,2]
[344984046,1733904643015,-1253.0,0.00011064,2]
[344984048,1733904643024,-3413.138,0.00011064,2]
[344984050,1733904643033,-535.0,0.00011064,2]
[344984052,1733904643044,-932.0,0.00011064,2]
[344984054,1733904643053,-500.0,0.00011073,2]
[344984056,1733904643063,-151.24293778,0.00011073,2]
[344984058,1733904643075,-153.0,0.00011082,2]
[344984060,1733904643084,-153.0,0.00011082,2]
[344984062,1733904643095,-153.0,0.00011082,2]
[344984064,1733904643105,-153.0,0.00011082,2]
[344984066,1733904643115,-1297.64758063,0.00011088,2]
[344984069,1733904643134,-288.94310877,0.00011088,2]
[344984074,1733904643178,-549.29900116,0.00011088,2]
[344984076,1733904643190,-1419.66374644,0.00011088,2]
[344984079,1733904643200,-1591.2041666,0.00011088,2]
[344984088,1733904643286,-8244.6215537,0.00011088,2]
[344984090,1733904643296,-3813.3390846,0.00011088,2]
[344984092,1733904643305,-504.38677108,0.00011091,2]
[344984094,1733904643317,-500.0,0.00011091,2]
[344984096,1733904643326,-500.0,0.00011091,2]
[344984098,1733904643334,-500.0,0.00011091,2]
[344984100,1733904643344,-500.0,0.00011091,2]
[344984102,1733904643353,-500.0,0.00011091,2]
[344984104,1733904643363,-500.0,0.00011091,2]
[344984106,1733904643372,-478.37448317,0.00011091,2]
[344984108,1733904643382,-500.0,0.00011091,2]
[344984110,1733904643391,-454.39427176,0.00011091,2]
[344984112,1733904643401,-500.0,0.00011091,2]
[344984114,1733904643411,-648.98053622,0.00011091,2]
[344984116,1733904643421,-500.0,0.00011091,2]
[344984145,1733904643643,-514.37,0.00011091,2]
[344984147,1733904643653,-500.0,0.00011091,2]
[344984149,1733904643663,-531.50858947,0.00011091,2]
[344984151,1733904643673,-500.0,0.00011091,2]
[344984153,1733904643684,-500.0,0.00011091,2]
[344984156,1733904643696,-500.0,0.00011091,2]
[344984157,1733904643708,-500.0,0.00011091,2]
[344984160,1733904643719,-500.0,0.00011091,2]
[344984161,1733904643729,-193.09306933,0.00011091,2]
[344984163,1733904643739,-500.0,0.00011092,2]
[344984165,1733904643748,-2904.9365407,0.00011092,2]
[344984167,1733904643758,-2254.3196444,0.00011092,2]
[344984170,1733904643769,-8036.0062221,0.00011092,2]
[344984171,1733904643779,-6236.186724,0.00011092,2]
[344984173,1733904643790,-500.0,0.00011092,2]
[344984175,1733904643799,-3115.5509952,0.00011092,2]
[344984177,1733904643809,-2417.7629057,0.00011092,2]
[344984179,1733904643823,-500.0,0.00011092,2]
[344984181,1733904643834,-500.0,0.00011093,2]
[344984183,1733904643844,-500.0,0.00011093,2]
[344984185,1733904643853,-500.0,0.00011093,2]
[344984187,1733904643863,-500.0,0.00011093,2]
[344984189,1733904643874,-500.0,0.00011094,2]
[344984191,1733904643884,-150.0,0.00011094,3]
[344984193,1733904643893,-150.0,0.00011094,2]
[344984195,1733904643903,-500.0,0.00011095,2]
[344984197,1733904643912,-500.0,0.00011095,2]
[344984199,1733904643922,-500.0,0.00011095,2]
[344984201,1733904643931,-500.0,0.00011096,2]
[344984203,1733904643941,-341.7946211,0.00011096,2]
[344984205,1733904643951,-500.0,0.00011097,2]
[344984207,1733904643960,-561.92024609,0.00011098,2]
[344984209,1733904643971,-500.0,0.00011098,2]
[344984211,1733904643980,-500.0,0.00011098,2]
[344984213,1733904643990,-500.0,0.00011098,2]
[344984215,1733904644002,-500.0,0.00011098,2]
[344984217,1733904644013,-500.0,0.00011098,2]
[344984219,1733904644023,-500.0,0.00011098,2]
[344984221,1733904644032,-500.0,0.00011098,2]
[344984223,1733904644041,-500.0,0.00011098,2]
[344984225,1733904644050,-549.73674272,0.00011098,2]
[344984227,1733904644059,-275.33,0.00011098,2]
[344984229,1733904644072,-500.0,0.00011098,2]
[344984231,1733904644082,-500.0,0.00011098,2]
[344984233,1733904644091,-2661.27,0.00011098,2]
[344984235,1733904644101,-500.0,0.00011098,2]
[344984237,1733904644112,-151.805,0.00011098,2]
[344984239,1733904644122,-502.69833402,0.00011098,2]
[344984241,1733904644131,-4856.81,0.00011098,2]
[344984243,1733904644141,-500.0,0.00011098,2]
[344984245,1733904644153,-500.0,0.00011098,2]
[344984247,1733904644163,-500.0,0.00011098,2]
[344984249,1733904644172,-500.0,0.00011098,2]
[344984251,1733904644181,-500.0,0.00011098,2]
[344984253,1733904644191,-500.0,0.00011098,2]
[344984255,1733904644200,-500.0,0.00011099,2]
[344984257,1733904644209,-281.53580793,0.00011099,2]
[344984259,1733904644219,-500.0,0.00011099,2]
[344984261,1733904644228,-500.0,0.00011099,2]
[344984263,1733904644237,-500.0,0.00011099,2]
[344984265,1733904644246,-500.0,0.00011099,2]
[344984267,1733904644255,-313.83121963,0.00011099,2]
[344984269,1733904644264,-343.50078161,0.00011099,2]
[344984271,1733904644275,-500.0,0.00011099,2]
[344984273,1733904644285,-205.47480969,0.00011099,2]
[344984275,1733904644296,-500.0,0.00011099,2]
[344984277,1733904644305,-500.0,0.00011099,2]
[344984279,1733904644314,-500.0,0.00011099,2]
[344984280,1733904644325,-500.0,0.00011099,2]
[344984282,1733904644334,-439.72667271,0.00011099,2]
[344984285,1733904644344,-500.0,0.00011099,2]
[344984286,1733904644353,-374.5258782,0.00011099,2]
[344984288,1733904644363,-313.28630236,0.00011099,2]
[344984290,1733904644372,-500.0,0.00011099,2]
[344984292,1733904644381,-500.0,0.00011099,2]
[344984294,1733904644391,-500.0,0.00011099,2]
[344984297,1733904644401,-500.0,0.00011099,2]
[344984299,1733904644410,-500.0,0.00011099,2]
[344984301,1733904644420,-500.0,0.00011099,2]
[344984302,1733904644430,-186.29588966,0.00011099,2]
[344984304,1733904644439,-500.0,0.00011099,2]
[344984306,1733904644449,-500.0,0.00011099,2]
[344984309,1733904644458,-692.09,0.00011099,2]
[344984311,1733904644468,-500.0,0.00011099,2]
[344984313,1733904644478,-500.0,0.00011099,2]
[344984315,1733904644488,-500.0,0.00011099,2]
[344984317,1733904644497,-500.0,0.00011099,2]
[344984319,1733904644506,-500.0,0.00011099,2]
[344984321,1733904644516,-500.0,0.00011099,2]
[344984323,1733904644525,-500.0,0.00011099,2]
[344984325,1733904644535,-617.33,0.00011099,2]
[344984327,1733904644544,-500.0,0.00011099,2]
[344984329,1733904644554,-500.0,0.00011099,2]
[344984331,1733904644563,-205.5,0.00011099,2]
[344984333,1733904644575,-500.0,0.00011099,2]
[344984335,1733904644584,-500.0,0.00011099,2]
[344984337,1733904644593,-500.0,0.00011099,2]
[344984339,1733904644602,-608.83346793,0.00011099,2]
[344984341,1733904644611,-500.0,0.00011099,2]
[344984343,1733904644620,-500.0,0.00011099,2]
[344984345,1733904644630,-191.16,0.00011099,2]
[344984347,1733904644640,-500.0,0.00011099,2]
[344984349,1733904644649,-500.0,0.00011099,2]